[Event "2nd Turkish League 2017"]
[Site "Konya"]
[Date "2017.07.22"]
[Round "8"]
[White "Buker, Muhittin"]
[Black "Demirag, Batuhan"]
[Result "1/2-1/2"]
[ECO "E61"]
[WhiteElo "2006"]
[BlackElo "1914"]
[Annotator "NA"]
[PlyCount "122"]
[EventType "team-tourn"]
[EventCountry "TUR"]
[SourceTitle "playchess.com"]
[Source "ChessBase"]
[SourceQuality "1"]
[TimeControl "5400+30"]

1. d4 {[%emt 0:00:30]} d6 {[%emt 0:01:00]} 2. Nf3 {[%emt 0:00:00]} Nf6 {[%emt 0:00:30]} 3. e3 {[%emt 0:02:00]} g6 {[%emt 0:01:30]} 4. Be2 {[%emt 0:00:30]} Bg7 {[%emt 0:00:30]} 5. c4 {[%emt 0:00:00]} Nbd7 {[%emt 0:01:30]} 6. Nc3 {[%emt 0:00:00]} c5 {[%emt 0:02:30]} 7. O-O {[%emt 0:00:30]} O-O {[%emt 0:00:30]} 8. b3 {[%emt 0:00:30]} b6 {[%emt 0:02:30]} 9. Bb2 {[%emt 0:00:30]} Bb7 {[%emt 0:00:30]} 10. Qc2 {[%emt 0:00:30]} cxd4 {[%emt 0:02:30]} 11. exd4 {[%emt 0:00:30]} d5 {[%emt 0:01:30]} 12. Rad1 {[%emt 0:02:30]} Rc8 {[%emt 0:03:30]} 13. Ne5 {[%emt 0:03:30]} a6 {[%emt 0:14:30]} 14. f4 {[%emt 0:02:30]} e6 {[%emt 0:03:30]} 15. Bf3 {[%emt 0:04:30]} Qc7 {[%emt 0:03:30]} 16. Qe2 {[%emt 0:05:30]} dxc4 {[%emt 0:00:30]} 17. Bxb7 {[%emt 0:00:30]} Qxb7 {[%emt 0:00:30]} 18. bxc4 {[%emt 0:00:00]} Rfe8 {[%emt 0:06:30]} 19. g4 {[%emt 0:04:00]} Bf8 {[%emt 0:08:30]} 20. g5 {[%emt 0:00:30]} Nh5 {[%emt 0:00:30]} 21. Ne4 {[%emt 0:01:30]} Be7 {[%emt 0:05:30]} 22. Qf3 {[%emt 0:18:30]} Rc7 {[%emt 0:03:30]} 23. d5 {[%emt 0:01:30]} Nxe5 {[%emt 0:03:30]} 24. fxe5 {[%emt 0:02:30]} Bc5+ {[%emt 0:00:30]} 25. Kg2 {[%emt 0:13:30]} Bf8 {[%emt 0:01:30]} 26. d6 {[%emt 0:03:30]} Rd7 {[%emt 0:00:30]} 27. Nf6+ {[%emt 0:01:30]} Nxf6 {[%emt 0:00:30]} 28. Qxb7 {[%emt 0:00:30]} Rxb7 {[%emt 0:00:30]} 29. gxf6 {[%emt 0:00:00]} Rc8 {[%emt 0:02:30]} 30. Ba3 {[%emt 0:01:00]} Rd7 {[%emt 0:00:30]} 31. Rd4 {[%emt 0:00:30]} Bh6 {[%emt 0:03:30]} 32. Kf3 {[%emt 0:00:30]} Rc6 {[%emt 0:02:30]} 33. Rb1 {[%emt 0:00:30]} Bf8 {[%emt 0:02:30]} 34. Ke4 {[%emt 0:03:30]} h5 {[%emt 0:00:30]} 35. Bb4 {[%emt 0:02:30]} Bh6 {[%emt 0:03:30]} 36. a4 {[%emt 0:00:30]} Kh7 {[%emt 0:02:45]} 37. h4 {[%emt 0:00:30]} Kg8 {[%emt 0:01:38]} 38. Ba3 {[%emt 0:00:30]} Kh7 {[%emt 0:00:51]} 39. c5 {[%emt 0:00:30]} bxc5 {[%emt 0:00:14]} 40. Rc4 {[%emt 0:00:00]} Bd2 {[%emt 0:03:57]} 41. Rxc5 {[%emt 0:00:00]} Rxc5 {[%emt 0:00:38]} 42. Bxc5 {[%emt 0:00:30]} g5 {[%emt 0:01:31]} 43. hxg5 {[%emt 0:00:30]} Kg6 {[%emt 0:00:51]} 44. Rd1 {[%emt 0:05:30]} Bxg5 {[%emt 0:00:52]} 45. Rg1 {[%emt 0:00:30]} Kh6 {[%emt 0:00:10]} 46. Be3 {[%emt 0:00:30]} Bxe3 {[%emt 0:00:30]} 47. Kxe3 {[%emt 0:00:00]} h4 {[%emt 0:00:16]} 48. Kf4 {[%emt 0:01:00]} Rb7 {[%emt 0:02:19]} 49. Rd1 {[%emt 0:00:30]} Rd7 {[%emt 0:00:27]} 50. Kg4 {[%emt 0:00:00]} Kg6 {[%emt 0:00:06]} 51. a5 {[%emt 0:04:00]} h3 {[%emt 0:00:34]} 52. Rd2 {[%emt 0:00:30]} Rd8 {[%emt 0:00:23]} 53. Rf2 {[%emt 0:04:23]} Rb8 {[%emt 0:02:21]} 54. Kxh3 {[%emt 0:00:58]} Kg5 {[%emt 0:00:56]} 55. Kg3 {[%emt 0:00:59]} Rc8 {[%emt 0:02:02]} 56. Rf3 {[%emt 0:00:48]} Rb8 {[%emt 0:00:28]} 57. Rf2 {[%emt 0:08:51]} Rb3+ {[%emt 0:02:48]} 58. Rf3 {[%emt 0:00:07]} Rb8 {[%emt 0:00:06]} 59. Re3 {[%emt 0:02:54]} Kf5 {[%emt 0:00:30]} 60. Kf3 {[%emt 0:00:00]} Rb2 {[%emt 0:01:15]} 61. Re2 {[%emt 0:02:26]} Rb3+ {[%emt 0:00:17]} 1/2-1/2

[Event "2nd Turkish League 2017"]
[Site "Konya"]
[Date "2017.07.22"]
[Round "8"]
[White "Ibik, Halit Yavuz"]
[Black "Cubukcuoglu, Basar"]
[Result "1-0"]
[ECO "C96"]
[WhiteElo "2004"]
[BlackElo "1548"]
[Annotator "NA"]
[PlyCount "109"]
[EventType "team-tourn"]
[EventCountry "TUR"]
[SourceTitle "playchess.com"]
[Source "ChessBase"]
[SourceQuality "1"]
[TimeControl "5400+30"]

1. e4 {[%emt 0:00:30]} e5 {[%emt 0:01:00]} 2. Nf3 {[%emt 0:00:00]} Nc6 {[%emt 0:00:00]} 3. Bb5 {[%emt 0:00:00]} a6 {[%emt 0:00:00]} 4. Ba4 {[%emt 0:00:30]} Nf6 {[%emt 0:00:30]} 5. O-O {[%emt 0:00:00]} Be7 {[%emt 0:00:00]} 6. Re1 {[%emt 0:00:00]} b5 {[%emt 0:00:00]} 7. Bb3 {[%emt 0:00:00]} d6 {[%emt 0:00:30]} 8. c3 {[%emt 0:00:00]} Na5 {[%emt 0:01:30]} 9. Bc2 {[%emt 0:00:30]} c5 {[%emt 0:00:30]} 10. h3 {[%emt 0:00:00]} O-O {[%emt 0:00:30]} 11. d4 {[%emt 0:00:00]} Nd7 {[%emt 0:00:30]} 12. Nbd2 {[%emt 0:01:30]} Re8 {[%emt 0:02:30]} 13. Nf1 {[%emt 0:00:00]} Bf8 {[%emt 0:03:30]} 14. Ne3 {[%emt 0:03:00]} Nc6 {[%emt 0:10:30]} 15. Nf5 {[%emt 0:03:30]} Qc7 {[%emt 0:05:30]} 16. a4 {[%emt 0:15:30]} b4 {[%emt 0:12:30]} 17. Bb3 {[%emt 0:00:30]} Na5 {[%emt 0:05:30]} 18. dxc5 {[%emt 0:08:30]} Nxb3 {[%emt 0:03:30]} 19. Qxb3 {[%emt 0:06:30]} Nxc5 {[%emt 0:01:30]} 20. Qc2 {[%emt 0:01:30]} Rb8 {[%emt 0:04:30]} 21. Ne3 {[%emt 0:08:30]} bxc3 {[%emt 0:06:30]} 22. bxc3 {[%emt 0:03:30]} Be6 {[%emt 0:02:30]} 23. Nd2 {[%emt 0:08:30]} Qd7 {[%emt 0:07:30]} 24. Nd5 {[%emt 0:03:30]} f5 {[%emt 0:02:30]} 25. c4 {[%emt 0:04:30]} Bxd5 {[%emt 0:05:30]} 26. exd5 {[%emt 0:04:30]} e4 {[%emt 0:03:30]} 27. Nf1 {[%emt 0:25:58]} Nd3 {[%emt 0:03:21]} 28. Rd1 {[%emt 0:00:19]} Rec8 {[%emt 0:02:48]} 29. Be3 {[%emt 0:01:02]} Nb2 {[%emt 0:05:24]} 30. Rdb1 {[%emt 0:01:27]} Rxc4 {[%emt 0:01:51]} 31. Qxc4 {[%emt 0:00:45]} Nxc4 {[%emt 0:00:08]} 32. Rxb8 {[%emt 0:00:00]} Qf7 {[%emt 0:02:13]} 33. Rab1 {[%emt 0:01:19]} Qxd5 {[%emt 0:01:11]} 34. R1b7 {[%emt 0:00:36]} Qc6 {[%emt 0:01:14]} 35. Bg5 {[%emt 0:00:23]} Ne5 {[%emt 0:01:24]} 36. Be7 {[%emt 0:00:30]} Ng6 {[%emt 0:02:23]} 37. Bxf8 {[%emt 0:00:20]} Nxf8 {[%emt 0:00:43]} 38. Ra7 {[%emt 0:00:07]} Qc3 {[%emt 0:01:16]} 39. Raa8 {[%emt 0:00:52]} Qf6 {[%emt 0:01:22]} 40. Rxf8+ {[%emt 0:00:47]} Qxf8 {[%emt 0:00:30]} 41. Rxf8+ {[%emt 0:00:00]} Kxf8 {[%emt 0:00:00]} 42. Ne3 {[%emt 0:00:00]} g6 {[%emt 0:00:05]} 43. Nd5 {[%emt 0:00:09]} a5 {[%emt 0:01:15]} 44. Ne3 {[%emt 0:00:05]} Ke7 {[%emt 0:00:25]} 45. Nc4 {[%emt 0:00:04]} d5 {[%emt 0:00:25]} 46. Nxa5 {[%emt 0:00:04]} Kd6 {[%emt 0:00:00]} 47. Nb3 {[%emt 0:00:24]} Kc6 {[%emt 0:00:44]} 48. Kf1 {[%emt 0:00:14]} Kb6 {[%emt 0:00:49]} 49. Ke2 {[%emt 0:00:13]} d4 {[%emt 0:00:35]} 50. Nxd4 {[%emt 0:01:26]} Ka5 {[%emt 0:00:30]} 51. Ne6 {[%emt 0:00:00]} h6 {[%emt 0:00:12]} 52. g4 {[%emt 0:00:39]} Kxa4 {[%emt 0:01:08]} 53. gxf5 {[%emt 0:00:14]} gxf5 {[%emt 0:00:16]} 54. Ke3 {[%emt 0:00:07]} Ka5 {[%emt 0:00:13]} 55. Ng7 {[%emt 0:00:07]} 1-0

[Event "2nd Turkish League 2017"]
[Site "Konya"]
[Date "2017.07.22"]
[Round "8"]
[White "Aydin, Ersin"]
[Black "Ozturk, Emir"]
[Result "0-1"]
[ECO "D31"]
[WhiteElo "1922"]
[BlackElo "2202"]
[Annotator "NA"]
[PlyCount "113"]
[EventType "team-tourn"]
[EventCountry "TUR"]
[SourceTitle "playchess.com"]
[Source "ChessBase"]
[SourceQuality "1"]
[TimeControl "5400+30"]

1. d4 {[%emt 0:00:30]} d5 {[%emt 0:01:00]} 2. c4 {[%emt 0:00:30]} e6 {[%emt 0:00:30]} 3. Nf3 {[%emt 0:00:00]} a6 {[%emt 0:00:00]} 4. cxd5 {[%emt 0:02:00]} exd5 {[%emt 0:00:00]} 5. Nc3 {[%emt 0:00:30]} c6 {[%emt 0:00:30]} 6. Bf4 {[%emt 0:05:30]} Bd6 {[%emt 0:00:30] LiveBook: 44 Games} 7. Bg3 {[%emt 0:01:30]} Ne7 {[%emt 0:02:30]} 8. e3 {[%emt 0:01:30]} Nf5 {[%emt 0:06:30]} 9. Bd3 {[%emt 0:00:30]} Nxg3 {[%emt 0:01:30]} 10. hxg3 {[%emt 0:00:30]} h6 {[%emt 0:00:30]} 11. Qc2 {[%emt 0:02:30]} Be6 {[%emt 0:04:30]} 12. O-O-O {[%emt 0:04:30]} Nd7 {[%emt 0:05:30]} 13. Kb1 {[%emt 0:03:30]} Nf6 $14 {[%emt 0:07:30]} 14. Ng5 {[%emt 0:20:30]} Kd7 {[%emt 0:23:30]} 15. Nxe6 {[%emt 0:01:30]} fxe6 {[%emt 0:00:30]} 16. e4 {[%emt 0:02:30]} dxe4 {[%emt 0:05:30]} 17. Nxe4 {[%emt 0:00:30]} Nxe4 {[%emt 0:00:30]} 18. Bxe4 {[%emt 0:00:00]} Qf6 {[%emt 0:01:30]} 19. Rhe1 {[%emt 0:06:00]} Rad8 {[%emt 0:06:30]} 20. Re3 {[%emt 0:02:30]} Bc7 {[%emt 0:03:30]} 21. Rf3 {[%emt 0:14:30]} Qg5 {[%emt 0:08:30]} 22. Rb3 {[%emt 0:13:00]} Kc8 {[%emt 0:01:46]} 23. f4 {[%emt 0:03:52]} Qa5 {[%emt 0:04:02]} 24. Ra3 {[%emt 0:08:17]} Qb6 {[%emt 0:02:12]} 25. Rb3 {[%emt 0:00:38]} Qa7 {[%emt 0:00:12]} 26. Qc4 {[%emt 0:00:00]} Rd6 {[%emt 0:00:31]} 27. Rbd3 {[%emt 0:02:21]} Rhd8 {[%emt 0:00:23]} 28. f5 {[%emt 0:01:06]} exf5 {[%emt 0:00:46]} 29. Bxf5+ {[%emt 0:00:30]} Kb8 {[%emt 0:00:00]} 30. Be4 {[%emt 0:00:16]} Qb6 {[%emt 0:07:57]} 31. a3 {[%emt 0:01:03]} Ka7 {[%emt 0:03:01]} 32. Bf3 {[%emt 0:00:39]} Qb5 {[%emt 0:00:24]} 33. Qxb5 {[%emt 0:01:24]} axb5 {[%emt 0:00:30]} 34. Kc2 {[%emt 0:00:30]} R6d7 {[%emt 0:00:30]} 35. g4 {[%emt 0:00:30]} Re8 {[%emt 0:00:30]} 36. b4 {[%emt 0:00:30]} Bd6 {[%emt 0:00:30]} 37. Kb3 {[%emt 0:00:30]} Kb6 {[%emt 0:00:30]} 38. d5 {[%emt 0:00:30]} c5 {[%emt 0:00:30]} 39. bxc5+ {[%emt 0:00:30]} Bxc5 {[%emt 0:00:30]} 40. Kb2 {[%emt 0:01:25]} Bd6 {[%emt 0:02:34]} 41. R1d2 {[%emt 0:00:46]} Rde7 {[%emt 0:00:34]} 42. Kb3 {[%emt 0:01:01]} Re3 {[%emt 0:00:15]} 43. Kb2 {[%emt 0:00:00]} Re1 {[%emt 0:00:45]} 44. Rd1 {[%emt 0:00:15]} R1e3 {[%emt 0:00:29]} 45. R1d2 {[%emt 0:00:46]} Ka5 {[%emt 0:00:09]} 46. Bd1 {[%emt 0:00:07]} Re1 {[%emt 0:01:25]} 47. Kb3 {[%emt 0:00:26]} R8e3 {[%emt 0:00:18]} 48. Kb2 {[%emt 0:00:35]} Re4 {[%emt 0:00:34]} 49. Rb3 {[%emt 0:00:49]} R1e3 {[%emt 0:00:52]} 50. Rdd3 {[%emt 0:00:15]} Rxd3 {[%emt 0:00:23]} 51. Rxd3 {[%emt 0:00:02]} Re1 {[%emt 0:00:24]} 52. Kb3 {[%emt 0:00:16]} Rg1 {[%emt 0:00:27]} 53. Bf3 {[%emt 0:00:23]} Rb1+ {[%emt 0:00:54]} 54. Ka2 {[%emt 0:00:37]} Re1 {[%emt 0:00:07]} 55. Bd1 {[%emt 0:00:38]} Kb6 {[%emt 0:00:24]} 56. Bf3 {[%emt 0:01:29]} Kc5 {[%emt 0:00:31]} 57. Kb3 {[%emt 0:01:04]} 0-1

[Event "2nd Turkish League 2017"]
[Site "Konya"]
[Date "2017.07.22"]
[Round "8"]
[White "Ozcelik, Ali Kaan"]
[Black "Alaz, Ahmet Efekan"]
[Result "1-0"]
[ECO "D15"]
[WhiteElo "1911"]
[BlackElo "2015"]
[Annotator "NA"]
[PlyCount "191"]
[EventType "team-tourn"]
[EventCountry "TUR"]
[SourceTitle "playchess.com"]
[Source "ChessBase"]
[SourceQuality "1"]
[TimeControl "5400+30"]

1. d4 {[%emt 0:00:30]} c6 {[%emt 0:01:00]} 2. c4 {[%emt 0:00:30]} d5 {[%emt 0:00:00]} 3. Nc3 {[%emt 0:00:30]} Nf6 {[%emt 0:00:00]} 4. Nf3 {[%emt 0:00:00]} a6 {[%emt 0:00:00]} 5. e3 {[%emt 0:01:00]} b5 {[%emt 0:00:00]} 6. cxd5 {[%emt 0:02:30]} cxd5 {[%emt 0:00:30]} 7. Bd3 {[%emt 0:00:30]} Bb7 {[%emt 0:00:00]} 8. O-O {[%emt 0:00:00]} Nbd7 {[%emt 0:01:00]} 9. Ne5 {[%emt 0:06:00]} e6 {[%emt 0:01:30]} 10. f4 {[%emt 0:01:30]} Be7 {[%emt 0:00:30]} 11. a3 {[%emt 0:03:30]} O-O {[%emt 0:01:30]} 12. Qf3 {[%emt 0:05:30]} Nb6 {[%emt 0:07:30]} 13. Qh3 {[%emt 0:04:30]} Ne4 {[%emt 0:14:30]} 14. f5 {[%emt 0:22:30]} exf5 {[%emt 0:03:30]} 15. Qxf5 {[%emt 0:00:30]} g6 {[%emt 0:00:30]} 16. Qf3 {[%emt 0:01:30]} f6 {[%emt 0:01:30]} 17. Ng4 {[%emt 0:05:30]} f5 {[%emt 0:00:30]} 18. Ne5 {[%emt 0:00:00]} Bd6 {[%emt 0:09:30]} 19. Ne2 {[%emt 0:08:00]} Qc7 {[%emt 0:09:30]} 20. b3 {[%emt 0:05:30]} Bxe5 {[%emt 0:03:30]} 21. dxe5 {[%emt 0:00:30]} Qxe5 {[%emt 0:00:00]} 22. Nd4 {[%emt 0:00:30]} Nd7 {[%emt 0:02:00]} 23. Qe2 {[%emt 0:10:47]} Qe7 {[%emt 0:03:30]} 24. Bb2 {[%emt 0:00:44]} Ne5 {[%emt 0:03:30]} 25. Nf3 {[%emt 0:01:36]} Ng4 {[%emt 0:01:30]} 26. Bd4 {[%emt 0:01:33]} Nc5 {[%emt 0:08:30]} 27. h3 {[%emt 0:05:02]} Nf6 {[%emt 0:01:30]} 28. Rab1 {[%emt 0:02:34]} Rac8 {[%emt 0:04:30]} 29. Ne5 {[%emt 0:04:07]} Nfd7 {[%emt 0:03:30]} 30. Nxd7 {[%emt 0:00:37]} Qxd7 {[%emt 0:03:03]} 31. Rfd1 {[%emt 0:03:54]} Rfe8 {[%emt 0:03:18]} 32. Qf2 {[%emt 0:00:35]} Ne6 {[%emt 0:02:40]} 33. Ba1 {[%emt 0:00:27]} Qe7 {[%emt 0:01:08]} 34. Qb2 {[%emt 0:00:43]} Qg7 {[%emt 0:02:42]} 35. Qf2 {[%emt 0:00:41]} Qe7 {[%emt 0:00:15]} 36. Qg3 {[%emt 0:00:52]} Ng7 {[%emt 0:00:47]} 37. Bd4 {[%emt 0:00:12]} Rc7 {[%emt 0:04:42]} 38. Rf1 {[%emt 0:01:58]} Nh5 {[%emt 0:01:42]} 39. Qf3 {[%emt 0:00:50]} Rf8 {[%emt 0:00:31]} 40. b4 {[%emt 0:01:13]} Rf7 {[%emt 0:00:21]} 41. Rbc1 {[%emt 0:00:25]} Qd6 {[%emt 0:00:35]} 42. Rxc7 {[%emt 0:00:20]} Qxc7 {[%emt 0:00:13]} 43. Re1 {[%emt 0:00:47]} Ng3 {[%emt 0:00:54]} 44. Qf2 {[%emt 0:00:26]} Re7 {[%emt 0:01:58]} 45. Bf6 {[%emt 0:00:34]} Rf7 {[%emt 0:01:01]} 46. Ba1 {[%emt 0:00:28]} Nh5 {[%emt 0:00:54]} 47. Qb2 {[%emt 0:00:12]} Ng7 {[%emt 0:00:10]} 48. Qd4 {[%emt 0:00:12]} Re7 {[%emt 0:00:32]} 49. Bb2 {[%emt 0:00:46]} Qg3 {[%emt 0:00:37]} 50. Re2 {[%emt 0:00:02]} Qd6 {[%emt 0:00:49]} 51. Rc2 {[%emt 0:00:23]} Qe6 {[%emt 0:00:27]} 52. Re2 {[%emt 0:00:37]} Rc7 {[%emt 0:00:20]} 53. Rc2 {[%emt 0:00:19]} Re7 {[%emt 0:00:43]} 54. Re2 {[%emt 0:00:37]} Qf7 {[%emt 0:01:00]} 55. Rc2 {[%emt 0:00:23]} Rc7 {[%emt 0:01:16]} 56. Rc5 {[%emt 0:00:23]} Kf8 {[%emt 0:00:12]} 57. Be2 {[%emt 0:00:54]} Ne6 {[%emt 0:00:29]} 58. Qh8+ {[%emt 0:00:08]} Qg8 {[%emt 0:00:33]} 59. Qf6+ {[%emt 0:00:29]} Qf7 {[%emt 0:00:26]} 60. Qh8+ {[%emt 0:00:50]} Qg8 {[%emt 0:00:31]} 61. Qe5 {[%emt 0:01:12]} Rxc5 {[%emt 0:00:49]} 62. bxc5 {[%emt 0:00:10]} Kf7 {[%emt 0:00:15]} 63. Qf6+ {[%emt 0:01:03]} Ke8 {[%emt 0:00:01]} 64. Be5 {[%emt 0:00:21]} Qf7 {[%emt 0:00:32]} 65. Qh8+ {[%emt 0:00:02]} Nf8 {[%emt 0:01:03]} 66. Bd6 {[%emt 0:00:03]} Bc6 {[%emt 0:00:27]} 67. Bf3 {[%emt 0:00:30]} a5 {[%emt 0:00:00]} 68. Qc3 {[%emt 0:00:31]} Qe6 {[%emt 0:00:31]} 69. Kf2 {[%emt 0:00:40]} a4 {[%emt 0:00:38]} 70. Qh8 {[%emt 0:00:37]} Qf7 {[%emt 0:00:06]} 71. h4 {[%emt 0:00:17]} Bb7 {[%emt 0:00:50]} 72. Qc3 {[%emt 0:01:02]} Bc6 {[%emt 0:00:52]} 73. g3 {[%emt 0:00:21]} Kd7 {[%emt 0:00:19]} 74. Qa5 {[%emt 0:00:22]} Ke6 {[%emt 0:00:44]} 75. Qb6 {[%emt 0:00:28]} Qb7 {[%emt 0:00:21]} 76. Bxf8 {[%emt 0:00:10]} b4 {[%emt 0:00:31]} 77. Qxb4 {[%emt 0:00:45]} Qxb4 {[%emt 0:00:48]} 78. axb4 {[%emt 0:00:02]} Kf7 {[%emt 0:00:19]} 79. Bd6 {[%emt 0:00:11]} Ke6 {[%emt 0:00:28]} 80. b5 {[%emt 0:01:58]} Bxb5 {[%emt 0:00:30]} 81. Bc7 {[%emt 0:00:00]} Bc4 {[%emt 0:00:34]} 82. Ba5 {[%emt 0:00:07]} Kd7 {[%emt 0:00:28]} 83. Bd1 {[%emt 0:01:17]} a3 {[%emt 0:00:30]} 84. Ba4+ {[%emt 0:00:00]} Kc8 {[%emt 0:00:07]} 85. Bc3 {[%emt 0:00:05]} a2 {[%emt 0:00:23]} 86. Kf3 {[%emt 0:00:17]} h6 {[%emt 0:01:00]} 87. Kf4 {[%emt 0:00:09]} Bd3 {[%emt 0:00:00]} 88. Ke5 {[%emt 0:01:10]} g5 {[%emt 0:00:12]} 89. hxg5 {[%emt 0:00:34]} hxg5 {[%emt 0:00:02]} 90. Kxd5 {[%emt 0:00:15]} f4 {[%emt 0:00:19]} 91. exf4 {[%emt 0:00:10]} gxf4 {[%emt 0:00:47]} 92. gxf4 {[%emt 0:00:05]} Bg6 {[%emt 0:00:25]} 93. Kd6 {[%emt 0:00:20]} Bf5 {[%emt 0:01:00]} 94. Bb3 {[%emt 0:00:10]} Bb1 {[%emt 0:00:37]} 95. c6 {[%emt 0:00:08]} Bf5 {[%emt 0:00:13]} 96. Bxa2 {[%emt 0:00:13]} 1-0

[Event "2nd Turkish League 2017"]
[Site "Konya"]
[Date "2017.07.22"]
[Round "8"]
[White "Kuruz, Yusuf"]
[Black "Celik, Berkay"]
[Result "0-1"]
[ECO "A30"]
[WhiteElo "1906"]
[BlackElo "1963"]
[Annotator "NA"]
[PlyCount "130"]
[EventType "team-tourn"]
[EventCountry "TUR"]
[SourceTitle "playchess.com"]
[Source "ChessBase"]
[SourceQuality "1"]
[TimeControl "5400+30"]

1. c4 {[%emt 0:00:30]} Nf6 {[%emt 0:01:00]} 2. Nf3 {[%emt 0:00:00]} e6 {[%emt 0:02:30]} 3. b3 {[%emt 0:02:00]} c5 {[%emt 0:01:30]} 4. Bb2 {[%emt 0:04:30]} b6 {[%emt 0:00:30]} 5. g3 {[%emt 0:01:30]} Bb7 {[%emt 0:00:30]} 6. Bg2 {[%emt 0:00:30]} Be7 {[%emt 0:00:00]} 7. O-O {[%emt 0:00:00]} d5 {[%emt 0:00:00]} 8. Ne5 {[%emt 0:00:00]} Nc6 {[%emt 0:00:30]} 9. e3 {[%emt 0:14:30]} Qc7 {[%emt 0:02:30]} 10. Nxc6 {[%emt 0:08:30]} Bxc6 {[%emt 0:01:30]} 11. Qf3 {[%emt 0:00:30]} Rc8 {[%emt 0:00:30]} 12. d3 {[%emt 0:02:30]} O-O {[%emt 0:00:30]} 13. Nd2 {[%emt 0:06:30]} Rfd8 {[%emt 0:00:30]} 14. Rfd1 {[%emt 0:00:30]} Qb8 {[%emt 0:01:30]} 15. Qe2 {[%emt 0:07:30]} Qb7 {[%emt 0:01:30]} 16. Nf3 {[%emt 0:00:30]} dxc4 {[%emt 0:00:30]} 17. dxc4 {[%emt 0:02:30]} Ng4 {[%emt 0:03:30]} 18. Rxd8+ {[%emt 0:09:30]} Rxd8 {[%emt 0:07:30]} 19. Rd1 {[%emt 0:00:30]} f6 {[%emt 0:07:30]} 20. Ne1 {[%emt 0:09:30]} Nh6 {[%emt 0:01:30]} 21. Rxd8+ {[%emt 0:02:30]} Bxd8 {[%emt 0:00:30]} 22. Bxc6 {[%emt 0:01:30]} Qxc6 {[%emt 0:00:00]} 23. Qd3 {[%emt 0:02:30]} Nf7 {[%emt 0:00:00]} 24. e4 {[%emt 0:00:30]} Qd6 {[%emt 0:01:30]} 25. f3 {[%emt 0:02:30]} Bc7 {[%emt 0:00:30]} 26. Qxd6 {[%emt 0:00:30]} Bxd6 {[%emt 0:00:30]} 27. Nd3 {[%emt 0:00:30]} Kf8 {[%emt 0:00:30]} 28. Kf2 {[%emt 0:01:30]} Ke7 {[%emt 0:05:30]} 29. Ke3 {[%emt 0:00:30]} Nd8 {[%emt 0:00:30]} 30. e5 {[%emt 0:02:40]} Bc7 {[%emt 0:00:30]} 31. f4 {[%emt 0:00:37]} Nc6 {[%emt 0:00:30]} 32. Ke4 {[%emt 0:00:36]} Kf7 {[%emt 0:01:30]} 33. g4 {[%emt 0:09:40]} Ne7 {[%emt 0:12:30]} 34. Kf3 {[%emt 0:03:50]} Kg6 {[%emt 0:05:30]} 35. h3 {[%emt 0:00:48]} f5 {[%emt 0:00:30]} 36. g5 {[%emt 0:01:03]} h6 {[%emt 0:01:30]} 37. gxh6 {[%emt 0:01:02]} Kxh6 {[%emt 0:00:00]} 38. Ne1 {[%emt 0:00:09]} g5 {[%emt 0:00:00]} 39. Bc1 {[%emt 0:00:50]} Kh5 {[%emt 0:04:30]} 40. Kg3 {[%emt 0:03:13]} Ng6 {[%emt 0:00:00]} 41. Nd3 {[%emt 0:00:14]} Bd8 {[%emt 0:01:00]} 42. Bb2 {[%emt 0:00:54]} g4 {[%emt 0:00:00]} 43. Bc1 {[%emt 0:00:50]} Be7 {[%emt 0:03:00]} 44. Bd2 {[%emt 0:00:13]} Nh4 {[%emt 0:00:00]} 45. Ne1 {[%emt 0:00:40]} Ng6 {[%emt 0:01:00]} 46. Nd3 {[%emt 0:00:14]} a5 {[%emt 0:00:30]} 47. Bc1 {[%emt 0:00:44]} Bh4+ {[%emt 0:00:30]} 48. Kg2 {[%emt 0:00:30]} Ne7 {[%emt 0:00:00]} 49. Be3 {[%emt 0:00:45]} Nc6 {[%emt 0:00:00]} 50. Bf2 {[%emt 0:00:26]} Bxf2 {[%emt 0:00:00]} 51. Nxf2 {[%emt 0:00:36]} Nb4 {[%emt 0:00:00]} 52. hxg4+ {[%emt 0:00:11]} fxg4 {[%emt 0:00:30]} 53. a4 {[%emt 0:00:57]} Nc2 {[%emt 0:00:00]} 54. Ne4 {[%emt 0:00:08]} Kh4 {[%emt 0:01:00]} 55. Ng5 {[%emt 0:00:30]} Nd4 {[%emt 0:00:30]} 56. Kf2 {[%emt 0:00:56]} g3+ {[%emt 0:00:00]} 57. Kg2 {[%emt 0:00:22]} Kg4 {[%emt 0:00:00]} 58. Ne4 {[%emt 0:00:42]} Ne2 {[%emt 0:00:00]} 59. f5 {[%emt 0:00:06]} Nf4+ {[%emt 0:01:00]} 60. Kg1 {[%emt 0:00:30]} exf5 {[%emt 0:00:00]} 61. Nf6+ {[%emt 0:00:24]} Kf3 {[%emt 0:00:00]} 62. e6 {[%emt 0:00:53]} Nxe6 {[%emt 0:00:30]} 63. Nd7 {[%emt 0:00:00]} g2 {[%emt 0:00:30]} 64. Ne5+ {[%emt 0:00:25]} Kg3 {[%emt 0:00:00]} 65. b4 {[%emt 0:00:13]} Nd4 {[%emt 0:00:00]} 0-1

[Event "2nd Turkish League 2017"]
[Site "Konya"]
[Date "2017.07.22"]
[Round "8"]
[White "Ozgur, Isa"]
[Black "Kerem, Halil Ozgun"]
[Result "0-1"]
[ECO "A13"]
[WhiteElo "1904"]
[BlackElo "2074"]
[Annotator "NA"]
[PlyCount "68"]
[EventType "team-tourn"]
[EventCountry "TUR"]
[SourceTitle "playchess.com"]
[Source "ChessBase"]
[SourceQuality "1"]
[TimeControl "5400+30"]

1. Nf3 {[%emt 0:00:30]} d5 {[%emt 0:01:00]} 2. c4 {[%emt 0:00:30]} e6 {[%emt 0:01:30]} 3. g3 {[%emt 0:01:30]} Nf6 {[%emt 0:00:00]} 4. Bg2 {[%emt 0:00:30]} a6 {[%emt 0:01:00]} 5. O-O {[%emt 0:01:30]} Be7 {[%emt 0:00:00]} 6. b3 {[%emt 0:01:30]} dxc4 {[%emt 0:09:00]} 7. bxc4 {[%emt 0:00:30]} c5 {[%emt 0:00:00]} 8. Nc3 {[%emt 0:01:30]} O-O {[%emt 0:00:00]} 9. Rb1 {[%emt 0:03:30]} Nc6 {[%emt 0:02:30]} 10. Ba3 {[%emt 0:04:30]} Rb8 {[%emt 0:07:30]} 11. d4 {[%emt 0:06:30]} cxd4 {[%emt 0:04:30]} 12. Bxe7 {[%emt 0:00:30]} Qxe7 {[%emt 0:00:00]} 13. Nxd4 {[%emt 0:00:30]} Nxd4 {[%emt 0:14:00]} 14. Qxd4 {[%emt 0:00:30]} Qc7 {[%emt 0:01:30]} 15. c5 {[%emt 0:10:30]} Bd7 {[%emt 0:04:30]} 16. Rfc1 {[%emt 0:07:30]} Rfc8 {[%emt 0:01:30]} 17. Ne4 {[%emt 0:07:30]} Nxe4 {[%emt 0:00:30]} 18. Bxe4 {[%emt 0:03:30]} Bc6 {[%emt 0:00:00]} 19. Bxc6 {[%emt 0:01:30]} Qxc6 {[%emt 0:00:00]} 20. Qd6 {[%emt 0:01:30]} h6 {[%emt 0:04:30]} 21. Qxc6 {[%emt 0:04:30]} Rxc6 {[%emt 0:00:00]} 22. Rb6 {[%emt 0:00:30]} Rbc8 {[%emt 0:07:00]} 23. Rxb7 {[%emt 0:01:30]} Rxc5 {[%emt 0:00:30]} 24. Rxc5 {[%emt 0:00:30]} Rxc5 {[%emt 0:00:30]} 25. Ra7 {[%emt 0:00:30]} Ra5 {[%emt 0:00:00]} 26. e3 {[%emt 0:00:00]} g5 {[%emt 0:00:00]} 27. g4 {[%emt 0:01:00]} Kg7 {[%emt 0:00:30]} 28. Kg2 {[%emt 0:00:30]} Rxa2 {[%emt 0:00:30]} 29. h3 {[%emt 0:01:30]} a5 {[%emt 0:00:30]} 30. Kg3 {[%emt 0:00:30]} a4 {[%emt 0:00:30]} 31. Kg2 {[%emt 0:05:30]} a3 {[%emt 0:00:00]} 32. Kg3 {[%emt 0:00:30]} Ra1 {[%emt 0:01:00]} 33. f4 {[%emt 0:01:30]} a2 {[%emt 0:04:30]} 34. Kf2 {[%emt 0:02:30]} Rh1 {[%emt 0:00:00]} 0-1